[Event "FIDE Candidates 2026"]
[Site "Pegeia, Cyprus"]
[Date "2026.04.05"]
[Round "6.3"]
[White "Bluebaum, Matthias"]
[Black "Nakamura, Hikaru"]
[Result "1/2-1/2"]
[ECO "D46"]
[WhiteElo "2698"]
[BlackElo "2810"]
[Annotator "Crowther,Mark"]
[PlyCount "80"]
[EventDate "2026.??.??"]
[TimeControl "40/7200:1800+30"]

{[%evp 0,80,22,23,23,0,6,4,4,4,18,7,24,54,52,56,37,23,39,20,28,30,30,30,39,55,40,40,40,-8,-11,-4,4,-19,-18,21,21,50,44,2,-7,-20,23,21,32,15,81,26,33,30,64,63,63,50,73,70,70,70,61,62,81,85,106,100,127,124,114,67,139,99,122,93,107,113,109,17,10,10,17,12,15,23,15]} 1. d4 d5 2. c4 e6 3. Nf3 Nf6 4. Nc3 h6 {Nakamura pointed out he was repeating a 2023 The American Cup game he'd played against Sam Sevian, but Bluebaum was ready.} 5. a3 c6 6. e3 Nbd7 7. Bd3 Bd6 8. e4 dxe4 9. Nxe4 Nxe4 10. Bxe4 O-O 11. O-O e5 12. Bc2 {A rare move, if not a new one—Nakamura admitted it got him out of book.} Bc7 $1 $146 {\"Very crafty, I'm proud of finding it $1\" said Nakamura. It cost him 33 minutes.} ({RR} 12... f5 13. c5 Be7 14. dxe5 Nxc5 15. Qe2 Qe8 16. Nd4 Kh8 17. Be3 Qg6 18. Rad1 Ne6 19. Nb3 Nc7 20. f4 b6 21. Qf3 c5 22. Nc1 Rb8 23. Ne2 Bb7 24. Qh3 Nd5 25. Bc1 Rbd8 26. Ng3 Bc8 27. Ne2 {Grigoriants,S (2550)-Prohaszka,P (2562) Budapest HUN 2022 ½-½ (31)} Nc7 28. Nc3 Rxd1 29. Rxd1 Qc6 30. Be3 Bb7 31. Rd2 {½-½ Grigoriants,S (2553)-Prohaszka,P (2563) HUN-ch 70th Budapest 2022 (1)}) 13. Re1 exd4 $1 14. Qxd4 Ne5 $1 {Played after a 20-minute think. Nakamura explained that after, e.g.,} (14... Re8 15. Rxe8+ Qxe8 16. Bd2 {White is threatening Bc3 and Rae1, with a brutal attack against Black's kingside.}) 15. Qe4 Nxf3+ {[#]} 16. Kh1 $1 $146 {Again a computer move that Bluebaum blitzed out. The threat of mate on g7 means the knight can't be captured.} (16. Qxf3 Qh4 17. h3 Qxc4 (17... f5 18. b4 Bd7 19. Bb2 Rae8 20. c5 Qf4 21. Bb3+ Kh7 22. Qxf4 Bxf4 23. Red1 Bc8 24. Re1 Bc7 25. Rad1 g5 26. Bf6 Kg6 27. Be7 Rh8 28. h4 Rh7 29. Bd6 Rxe1+ 30. Rxe1 Bxd6 31. cxd6 gxh4 32. f4 Kf6 33. Kh2 Bd7 34. a4 Rg7 35. a5 b6 36. axb6 axb6 37. Ba2 c5 38. bxc5 bxc5 39. Re5 Rg3 40. Re7 Ra3 41. Bg8 Bc6 42. Rc7 Be4 43. Bc4 Ra8 44. Rf7+ Kg6 45. Re7 Rd8 {1-0 Aradhya,G (2202)-Ghosh,D (2469) IND-ch Rapid Mahilong 2025 (5)}) 18. Re7 Qxc2 19. Rxc7 a5 {is the long line Nakamura had calculated.}) 16... g6 17. Qxf3 Qh4 18. h3 Bd7 $1 (18... Qxc4 {no longer worked, as Nakamura pointed out, giving} 19. Bxh6 Qxc2 $4 20. Qf6 {and checkmate to follow.}) (18... Be6 $2 19. Re4 {is the problem with the natural move.}) 19. Be3 (19. Re4 $2 {can now be met by} Rae8 $3 {with the point that} 20. Rxh4 $4 {runs into} Re1#) 19... Rfe8 20. Rad1 Rad8 21. Bxa7 (21. b3 h5 22. Bh6 Rxe1+ 23. Rxe1 Bb6 24. Kg1) 21... Qxc4 {Nakamura felt the worst was over by this point, but he was in for another shock.} (21... Rxe1+ 22. Rxe1 Qg5 {is better, in hindsight.}) 22. Bb6 $3 {Just when Nakamura \"thought I was finally out of danger,\" he was hit by this blow. Luckily he noted he has only moves to stay in the game, so they weren't hard to find.} Rxe1+ (22... Bxb6 $4 {loses to} 23. Bb3 $1 {as Black can no longer defend the f7-square with ...Qf4.}) 23. Rxe1 Qxc2 24. Bxc7 Re8 25. Rxe8+ Bxe8 $11 26. Be5 {White retains checkmating threats with the bishop and queen, but Nakamura noted he was more worried by} (26. Qe3 {He also pointed that with no white pawns involved in the attack, there was always likely to be a defense.}) 26... Qb1+ 27. Kh2 Qf5 28. Qe3 Qe6 29. Qd4 g5 30. Bh8 Kf8 31. f4 gxf4 32. Qxf4 Ke7 33. Bg7 (33. Bc3 {was suggested by Nakamura as the last chance to apply pressure.}) 33... h5 {Nakamura breathed a sigh of relief here.} 34. Bc3 Kd7 35. Kh1 b5 36. Ba5 Qd5 37. Qb8 Qd1+ 38. Kh2 Qd6+ 39. Qxd6+ Kxd6 40. Kg3 f6 1/2-1/2

[Event "FIDE Candidates 2026"]
[Site "Pegeia, Cyprus"]
[Date "2026.04.05"]
[Round "6.4"]
[White "Praggnanandhaa R"]
[Black "Caruana, Fabiano"]
[Result "1/2-1/2"]
[ECO "D17"]
[WhiteElo "2741"]
[BlackElo "2795"]
[Annotator "Crowther,Mark"]
[PlyCount "75"]
[EventDate "2026.??.??"]
[TimeControl "40/7200:1800+30"]

{[%evp 0,75,22,23,15,-3,34,31,34,23,27,5,11,-45,36,-9,66,83,51,55,68,68,66,42,82,24,50,40,45,45,26,22,22,33,33,33,21,12,18,18,21,20,19,8,-1,-1,-5,0,-1,0,1,-15,34,-29,-7,-36,0,0,40,-22,-23,-23,-51,-42,-42,-38,-51,-58,-53,-16,-14,-16,-16,-16,-16,-16,-16,-16]} 1. d4 d5 2. c4 c6 3. Nf3 Nf6 4. Nc3 dxc4 5. a4 Bf5 6. Ne5 Qc7 $5 {Already a very rare move.} (6... Nbd7 {is vastly more common.} 7. Nxc4 Qc7 8. g3 e5 9. dxe5 Nxe5 10. Bf4 Nfd7 11. h4 f6 12. Qc1 Be6 13. Nxe5 Nxe5 14. a5 a6 15. Ra4 O-O-O 16. Bh3 Bxh3 17. Rxh3 Qd7 18. Rh1 Bd6 19. Kf1 h5 20. Kg2 Ng4 21. Rd1 Bxf4 22. Qxf4 Qe6 23. Rad4 Rxd4 24. Rxd4 Qe5 25. b4 Re8 26. Qd2 f5 27. Na4 Nf6 28. Nb6+ Kc7 29. e3 Qe7 30. Qd3 g6 31. Qc4 Rd8 32. Rxd8 Kxd8 33. Qf4 Qe4+ 34. Qxe4 fxe4 35. f3 Ke7 36. fxe4 {1-0 Maghsoodloo,P (2691)-Nakamura,H (2804) Titled Tuesday intern op 01st Jul Late Chess.com INT blitz 2025 (7)}) 7. Nxc4 Na6 {Caruana blitzes out a bold new idea.} 8. f3 Rd8 9. e4 Be6 10. Ne5 ({RR} 10. Be3 Nb4 11. Nd2 a5 12. Be2 g6 13. O-O Bg7 14. Bc4 Bxc4 15. Nxc4 O-O 16. Qb3 Nh5 17. e5 g5 18. Rad1 Nf4 19. Kh1 Ne6 20. Ne4 h6 21. Bf2 Rd7 22. Nb6 Rdd8 23. Nc4 Rd7 24. Nb6 Rdd8 {Vlasak,L (2440)-Bauer,T (2172) Germany GER 2026 ½-½}) 10... Nb4 11. Be3 a5 {[#]} 12. Bc4 $146 ({RR} 12. Rc1 g6 13. f4 Bg7 14. Be2 O-O 15. O-O Nd7 16. Nf3 Nc5 17. d5 b6 18. dxe6 Rxd1 19. exf7+ Kh8 20. Rcxd1 Nc2 21. Bxc5 bxc5 22. Ng5 Ne3 23. Ne6 Qc8 24. Nxf8 Qxf8 25. e5 {½-½ Kaufman,D (2447)-Atalik,S (2438) Pozarevac Rudar GM 08 2025 (6) ½-½ (25) Akhmedov,D (2447)-Atalik,S (2438) Pozarevac SRB 2025}) (12. Qd2) 12... Nd7 13. Bxe6 Nxe5 $1 14. O-O $1 {Praggnanandhaa had to dig deep, but he found all the best moves—what a position $1} fxe6 15. Bf4 $1 {Strictly the only move, pinning the knight.} Nbd3 $1 {Again the only move—now the tension recedes.} 16. Qxd3 $1 Nxd3 17. Bxc7 Rxd4 18. Rfd1 Rd7 19. Bxa5 {And as Caruana lamented—a fighting opening has resolved into a drawish endgame.} g6 20. Ne2 Bg7 21. Bc3 Bxc3 22. Nxc3 Kf7 23. a5 Rhd8 24. a6 bxa6 25. Rxa6 Rd6 26. h4 Rb8 27. Rd2 h6 28. Nd1 g5 29. h5 Ne5 30. Rxd6 exd6 $11 31. Ra7+ Kf8 32. Kf1 (32. Rh7 $2 Nf7 33. Kf2 Kg8 34. Rxf7 Kxf7 $19) 32... d5 33. exd5 cxd5 34. Ra6 Ke7 35. Ra7+ Kf8 36. Ra6 Ke7 37. Ra7+ Kf8 38. Ra6 {A very well-played game, though as Caruana pointed out, neither play was ever in great danger.} 1/2-1/2

[Event "FIDE Candidates 2026"]
[Site "Pegeia, Cyprus"]
[Date "2026.04.04"]
[Round "7.1"]
[White "Caruana, Fabiano"]
[Black "Esipenko, Andrey"]
[Result "1/2-1/2"]
[ECO "A14"]
[WhiteElo "2795"]
[BlackElo "2698"]
[Annotator "Mark Crowther"]
[PlyCount "92"]
[EventDate "2026.??.??"]
[TimeControl "40/7200:1800+30"]

{[%evp 0,92,22,20,18,6,7,-40,-31,-30,-10,-49,5,-22,1,-11,-16,-3,1,-26,-8,-62,-28,-20,-7,-23,-1,4,47,50,28,-17,3,3,17,7,2,2,11,-17,7,7,-8,12,14,18,17,27,-1,25,24,47,52,30,45,37,38,27,21,29,27,29,34,9,34,22,30,11,5,11,0,13,0,0,0,0,0,-50,-53,-47,0,0,0,0,0,-22,-19,-20,-20,-20,-38,-50,-64,-28,-18]} 1. Nf3 d5 2. c4 e6 3. g3 Nf6 4. Bg2 Be7 5. O-O O-O 6. b3 c5 7. Bb2 Nc6 8. e3 b6 9. Qe2 Bb7 10. Rd1 {Up to this point Caruana had used less than two minutes on his clock, but the next move sends him into a deep think.} Qd7 $5 {This move is rare compared to A14: English Opening: 1...e6 with b3 by White.} (10... Qc7 {but it's notable it was once played by Mikhail Tal against another legend, Ulf Andersson.}) 11. d4 $1 {Caruana reacts well, but the position nevertheless fizzles out.} cxd4 12. Nxd4 Nxd4 13. Bxd4 Qc8 $146 ({Predecessor: RR} 13... Qc7 14. cxd5 Bxd5 15. e4 Bc6 16. Nc3 e5 17. Be3 Rad8 18. Rxd8 Rxd8 19. Rd1 Rxd1+ 20. Qxd1 {½-½ Asadli,V (2572)-Gadimbayli,A (2470) AZE-ch Prelim 75th Nakhchivan 2021 (8)} Qd6 21. f3 Qxd1+ 22. Nxd1 Bb4 23. Kf2 Kf8 24. Bf1 Nd7 25. Bc4 Ke7 26. Ke2 Nf8 27. Bd2 Bxd2 28. Kxd2 {Asadli,V (2572)-Gadimbayli,A (2470) Nakhchivan 2021 ½-½ (37)}) 14. cxd5 Bxd5 15. Nc3 (15. e4 {may have been a try.}) 15... Bxg2 16. Kxg2 Qb7+ 17. Qf3 Qxf3+ 18. Kxf3 Rfc8 19. Rd3 Nd7 20. Rdd1 f6 21. Nb5 a6 22. Bb2 axb5 23. Rxd7 Bf8 24. Bd4 b4 25. Bxb6 {White wins a pawn, but the b4-pawn kills the white queenside, so that the extra pawn isn't felt at all.} Ra6 26. Bd8 Rd6 27. Rxd6 Bxd6 $11 28. Bb6 Rc6 29. Ba7 Rc2 30. Bd4 e5 31. Ba7 Kf7 32. e4 Ke6 33. g4 g6 34. Be3 Be7 35. h3 f5 36. gxf5+ gxf5 37. Rc1 {The only way the rook can move is to give up a pawn, and things soon liquidate to a draw.} Rxa2 38. Rc6+ Kd7 39. Rc4 fxe4+ 40. Kxe4 Rb2 41. Kxe5 Rxb3 42. Kd5 Ra3 43. Re4 Ra5+ 44. Kc4 Rh5 45. Bd2 Rxh3 46. Bxb4 Bxb4 1/2-1/2

[Event "FIDE Candidates 2026"]
[Site "Pegeia, Cyprus"]
[Date "2026.04.04"]
[Round "7.2"]
[White "Nakamura, Hikaru"]
[Black "Praggnanandhaa R"]
[Result "1/2-1/2"]
[ECO "E42"]
[WhiteElo "2810"]
[BlackElo "2741"]
[Annotator "Mark Crowther"]
[PlyCount "46"]
[EventDate "2026.??.??"]
[TimeControl "40/7200:1800+30"]

{[%evp 0,46,22,23,29,6,4,4,4,4,36,26,25,13,18,14,29,5,21,12,16,17,17,24,45,12,18,11,11,9,16,8,16,-6,1,1,1,4,16,-24,5,-15,-1,-1,10,-13,10,10,-2]} 1. d4 Nf6 2. c4 e6 3. Nc3 Bb4 4. e3 b6 5. Nge2 c5 6. a3 Ba5 7. Bd2 O-O 8. d5 exd5 {E42: Nimzo-Indian: Rubinstein: 4...c5 5 Ne2.} 9. Nxd5 Nxd5 {The position is equal.} 10. cxd5 {[#]} Bxd2+ 11. Qxd2 Ba6 12. Ng3 Bxf1 13. Kxf1 $146 {We've got an interesting position where White's awkward king potentially gives hope to Black.} ({Predecessor: RR} 13. Nxf1 d6 14. Ng3 Nd7 15. O-O f5 16. Rae1 b5 17. f4 c4 18. e4 fxe4 19. Nxe4 {0-1 Kasparov,S (2462)-Rotstein,A (2557) San Martino di Castrozza op 3rd 2002 (6)} Qb6+ 20. Kh1 Rae8 21. h3 h6 22. Ng3 Nc5 23. f5 Rxe1 24. Rxe1 Nd3 25. Re7 Qd4 26. Qc3 Nf2+ 27. Kh2 Qxc3 {Kasparov,S (2462)-Rotstein,A (2557) San Martino di Castrozza 2002 0-1 (53)}) 13... d6 14. h4 Nd7 15. e4 Qf6 16. Re1 g6 17. h5 Ne5 18. Rh3 b5 19. Kg1 c4 20. Qh6 {This is where the forcing play begins. [#]} (20. Rf1 {would have completed \"castling by hand\" for Nakamura, but it's an open question if White would want to play a position such as} Nd3 21. Qh6 Qg7 22. Qg5 Rae8 23. f4 f6 24. Qg4 f5 25. Qh4) 20... Ng4 21. Qd2 Ne5 22. Qh6 Ng4 23. Qd2 Ne5 {After serious thought, Praggnanandhaa takes the draw, putting him 2.5 points behind the leader.} (23... Rae8 {is certainly playable, but if anything the computer gives a slight edge for White.}) (23... h6 $2 {allows White to demonstrate ideas such as} 24. e5 $1 Nxe5 25. Ne4 $1 {with a big advantage.}) 1/2-1/2